[Event "Titled Tuesday Blitz December 06 Early 2022"]
[White "Tarlabasi, Emirhan"]
[Black "Turzo, Attila"]
[WhiteFideId "6350275"]
[BlackFideId "704954"]
[WhiteElo "2200"]
[BlackElo "2493"]
[Result "0-1"]
[Round "10"]
[TimeControl "180+1"]
[Date "2022.12.07"]
[WhiteClock "0:00:07"]
[BlackClock "0:00:17"]

1. Nf3 {[%clk 0:02:56]}  Nf6 {[%clk 0:02:58]} 2. c4 {[%clk 0:02:57]}  g6 {[%clk 0:02:56]} 3. b3 {[%clk 0:02:54]}  Bg7 {[%clk 0:02:56]} 4. Bb2 {[%clk 0:02:55]}  O-O {[%clk 0:02:55]} 5. g3 {[%clk 0:02:55]}  c5 {[%clk 0:02:55]} 6. Bg2 {[%clk 0:02:54]}  d5 {[%clk 0:02:53]} 7. cxd5 {[%clk 0:02:46]}  Qxd5 {[%clk 0:02:52]} 8. O-O {[%clk 0:02:43]}  Qh5 {[%clk 0:02:47]} 9. d3 {[%clk 0:02:28]}  Bh3 {[%clk 0:02:43]} 10. Qd2 {[%clk 0:02:21]}  Bxg2 {[%clk 0:02:42]} 11. Kxg2 {[%clk 0:02:21]}  Nc6 {[%clk 0:02:42]} 12. Qg5 {[%clk 0:02:18]}  Qxg5 {[%clk 0:02:39]} 13. Nxg5 {[%clk 0:02:19]}  Nd4 {[%clk 0:02:35]} 14. Nc3 {[%clk 0:01:55]}  Rfd8 {[%clk 0:02:27]} 15. Nf3 {[%clk 0:01:51]}  a6 {[%clk 0:02:02]} 16. Rac1 {[%clk 0:01:44]}  b5 {[%clk 0:01:58]} 17. Rfe1 {[%clk 0:01:43]}  Rac8 {[%clk 0:01:52]} 18. Ng5 {[%clk 0:01:39]}  Nd5 {[%clk 0:01:30]} 19. Nxd5 {[%clk 0:01:21]}  Rxd5 {[%clk 0:01:30]} 20. Bxd4 {[%clk 0:01:03]}  Bxd4 {[%clk 0:01:23]} 21. Nf3 {[%clk 0:01:03]}  Rdd8 {[%clk 0:01:20]} 22. Rc2 {[%clk 0:00:55]}  Kf8 {[%clk 0:01:09]} 23. Rec1 {[%clk 0:00:55]}  c4 {[%clk 0:01:00]} 24. dxc4 {[%clk 0:00:52]}  bxc4 {[%clk 0:00:59]} 25. Rxc4 {[%clk 0:00:52]}  Rxc4 {[%clk 0:00:57]} 26. Rxc4 {[%clk 0:00:53]}  Bf6 {[%clk 0:00:56]} 27. Rc6 {[%clk 0:00:46]}  a5 {[%clk 0:00:54]} 28. Ra6 {[%clk 0:00:45]}  Rd5 {[%clk 0:00:53]} 29. e4 {[%clk 0:00:44]}  Rc5 {[%clk 0:00:50]} 30. Ne1 {[%clk 0:00:33]}  Rc1 {[%clk 0:00:43]} 31. Nd3 {[%clk 0:00:32]}  Rd1 {[%clk 0:00:42]} 32. Nf4 {[%clk 0:00:28]}  Bc3 {[%clk 0:00:35]} 33. Nd5 {[%clk 0:00:27]}  Be1 {[%clk 0:00:32]} 34. Ra8+ {[%clk 0:00:20]}  Kg7 {[%clk 0:00:32]} 35. Nxe7 {[%clk 0:00:20]}  Rd2 {[%clk 0:00:30]} 36. Kf1 {[%clk 0:00:20]}  Bxf2 {[%clk 0:00:29]} 37. Rxa5 {[%clk 0:00:21]}  Bb6 {[%clk 0:00:25]} 38. Rb5 {[%clk 0:00:20]}  Bd4 {[%clk 0:00:23]} 39. Rd5 {[%clk 0:00:19]}  Rf2+ {[%clk 0:00:19]} 40. Ke1 {[%clk 0:00:19]}  Bb6 {[%clk 0:00:19]} 41. Nc8 {[%clk 0:00:19]}  Be3 {[%clk 0:00:19]} 42. Rd3 {[%clk 0:00:18]}  Bc5 {[%clk 0:00:18]} 43. Rd5 {[%clk 0:00:18]}  Be3 {[%clk 0:00:19]} 44. Nd6 {[%clk 0:00:18]}  Rxh2 {[%clk 0:00:18]} 45. Nc4 {[%clk 0:00:18]}  Bf2+ {[%clk 0:00:18]} 46. Kf1 {[%clk 0:00:17]}  Bxg3 {[%clk 0:00:18]} 47. a3 {[%clk 0:00:18]}  Ra2 {[%clk 0:00:18]} 48. b4 {[%clk 0:00:18]}  h5 {[%clk 0:00:18]} 49. b5 {[%clk 0:00:16]}  h4 {[%clk 0:00:18]} 50. Ne3 {[%clk 0:00:14]}  h3 {[%clk 0:00:18]} 51. Ng4 {[%clk 0:00:13]}  h2 {[%clk 0:00:18]} 52. Nxh2 {[%clk 0:00:12]}  Bxh2 {[%clk 0:00:19]} 53. b6 {[%clk 0:00:11]}  Rxa3 {[%clk 0:00:19]} 54. Rb5 {[%clk 0:00:12]}  Ra6 {[%clk 0:00:18]} 55. b7 {[%clk 0:00:11]}  Bb8 {[%clk 0:00:18]} 56. Ke2 {[%clk 0:00:12]}  Re6 {[%clk 0:00:18]} 57. Kd3 {[%clk 0:00:13]}  Kf6 {[%clk 0:00:18]} 58. Kd4 {[%clk 0:00:13]}  g5 {[%clk 0:00:18]} 59. Rf5+ {[%clk 0:00:13]}  Kg6 {[%clk 0:00:18]} 60. Rc5 {[%clk 0:00:13]}  Re7 {[%clk 0:00:19]} 61. Rb5 {[%clk 0:00:12]}  g4 {[%clk 0:00:18]} 62. Ke3 {[%clk 0:00:12]}  g3 {[%clk 0:00:18]} 63. e5 {[%clk 0:00:13]}  Kf5 {[%clk 0:00:18]} 64. Kf3 {[%clk 0:00:13]}  Rxe5 {[%clk 0:00:18]} 65. Rb4 {[%clk 0:00:12]}  Re8 {[%clk 0:00:17]} 66. Rc4 {[%clk 0:00:11]}  Ke6 {[%clk 0:00:16]} 67. Rc8 {[%clk 0:00:11]}  Kd7 {[%clk 0:00:17]} 68. Rc4 {[%clk 0:00:10]}  Bd6 {[%clk 0:00:17]} 69. Rd4 {[%clk 0:00:10]}  Rb8 {[%clk 0:00:17]} 70. Rd5 {[%clk 0:00:04]}  Kc6 {[%clk 0:00:17]} 71. Rf5 {[%clk 0:00:05]}  Rxb7 {[%clk 0:00:17]} 72. Rf6 {[%clk 0:00:06]}  Kd5 {[%clk 0:00:17]} 73. Kg2 {[%clk 0:00:06]}  Be5 {[%clk 0:00:16]} 74. Rf3 {[%clk 0:00:07]}  Ke4 {[%clk 0:00:17]} 75. Ra3 {[%clk 0:00:07]}  f5 {[%clk 0:00:17]} 76. Kg1 {[%clk 0:00:08]}  f4 {[%clk 0:00:17]} 77. Kg2 {[%clk 0:00:08]}  Rb2+ {[%clk 0:00:17]} 78. Kg1 {[%clk 0:00:08]}  Bd4+ {[%clk 0:00:17]} 79. Kf1 {[%clk 0:00:07]}  g2+ {[%clk 0:00:17]} 0-1


[Site "https://www.chess.com"]

[Event "Titled Tuesday Blitz December 06 Early 2022"]
[White "Tay, Junior"]
[Black "Sakun, Volodymyr"]
[WhiteFideId "5800439"]
[BlackFideId "14114062"]
[WhiteElo "2216"]
[BlackElo "2319"]
[Result "0-1"]
[Round "10"]
[TimeControl "180+1"]
[Date "2022.12.07"]
[WhiteClock "0:01:31"]
[BlackClock "0:01:03"]

1. e4 {[%clk 0:02:55]}  c6 {[%clk 0:02:58]} 2. Nf3 {[%clk 0:02:55]}  d5 {[%clk 0:02:58]} 3. exd5 {[%clk 0:02:56]}  cxd5 {[%clk 0:02:58]} 4. Ne5 {[%clk 0:02:57]}  Nc6 {[%clk 0:02:53]} 5. d4 {[%clk 0:02:57]}  Nxe5 {[%clk 0:02:49]} 6. dxe5 {[%clk 0:02:57]}  e6 {[%clk 0:02:47]} 7. Bd3 {[%clk 0:02:57]}  Qc7 {[%clk 0:02:45]} 8. Qe2 {[%clk 0:02:57]}  Ne7 {[%clk 0:02:38]} 9. Nd2 {[%clk 0:02:57]}  Nc6 {[%clk 0:02:37]} 10. Nf3 {[%clk 0:02:57]}  h6 {[%clk 0:02:27]} 11. c3 {[%clk 0:02:56]}  g5 {[%clk 0:02:27]} 12. h3 {[%clk 0:02:56]}  Bg7 {[%clk 0:02:26]} 13. O-O {[%clk 0:02:53]}  Nxe5 {[%clk 0:02:25]} 14. Nxe5 {[%clk 0:02:52]}  Bxe5 {[%clk 0:02:05]} 15. Bb5+ {[%clk 0:02:51]}  Kf8 {[%clk 0:02:03]} 16. Bd2 {[%clk 0:02:34]}  Bf4 {[%clk 0:01:48]} 17. Rae1 {[%clk 0:02:32]}  Kg7 {[%clk 0:01:46]} 18. g3 {[%clk 0:02:16]}  Bxd2 {[%clk 0:01:39]} 19. Qxd2 {[%clk 0:02:16]}  e5 {[%clk 0:01:25]} 20. g4 {[%clk 0:02:04]}  Be6 {[%clk 0:01:18]} 21. Re2 {[%clk 0:01:54]}  f6 {[%clk 0:01:15]} 22. Ba4 {[%clk 0:01:47]}  h5 {[%clk 0:01:14]} 23. Bc2 {[%clk 0:01:45]}  hxg4 {[%clk 0:01:12]} 24. Qd3 {[%clk 0:01:43]}  e4 {[%clk 0:01:09]} 25. Qg3 {[%clk 0:01:39]}  Qxg3+ {[%clk 0:01:07]} 26. fxg3 {[%clk 0:01:40]}  Rxh3 {[%clk 0:01:07]} 27. Kg2 {[%clk 0:01:31]}  Rah8 {[%clk 0:01:03]} 0-1


[Site "https://www.chess.com"]

[Event "Titled Tuesday Blitz December 06 Early 2022"]
[White "Tologon tegin, Semetei"]
[Black "Topalov, Aleksandar"]
[WhiteFideId "13800574"]
[BlackFideId "925659"]
[WhiteElo "2264"]
[BlackElo "2151"]
[Result "1-0"]
[Round "10"]
[TimeControl "180+1"]
[Date "2022.12.07"]
[WhiteClock "0:00:06"]
[BlackClock "0:00:01"]

1. e4 {[%clk 0:01:34]}  e6 {[%clk 0:02:40]} 2. d4 {[%clk 0:01:33]}  d5 {[%clk 0:02:40]} 3. e5 {[%clk 0:01:34]}  Ne7 {[%clk 0:02:39]} 4. Nf3 {[%clk 0:01:33]}  Qd7 {[%clk 0:02:39]} 5. Bd3 {[%clk 0:01:33]}  b6 {[%clk 0:02:40]} 6. O-O {[%clk 0:01:33]}  Ba6 {[%clk 0:02:40]} 7. c3 {[%clk 0:01:22]}  Bxd3 {[%clk 0:02:39]} 8. Qxd3 {[%clk 0:01:23]}  c5 {[%clk 0:02:39]} 9. Be3 {[%clk 0:01:21]}  Nf5 {[%clk 0:02:38]} 10. Nbd2 {[%clk 0:01:20]}  Nc6 {[%clk 0:02:38]} 11. a3 {[%clk 0:01:19]}  Be7 {[%clk 0:02:37]} 12. b4 {[%clk 0:01:18]}  O-O {[%clk 0:02:37]} 13. dxc5 {[%clk 0:01:12]}  Nxe3 {[%clk 0:02:36]} 14. Qxe3 {[%clk 0:01:13]}  bxc5 {[%clk 0:02:36]} 15. bxc5 {[%clk 0:01:13]}  Na5 {[%clk 0:02:31]} 16. c4 {[%clk 0:01:05]}  dxc4 {[%clk 0:02:04]} 17. Rac1 {[%clk 0:01:01]}  Qd5 {[%clk 0:02:00]} 18. Ne4 {[%clk 0:00:58]}  Rac8 {[%clk 0:01:42]} 19. Rcd1 {[%clk 0:00:32]}  Qc6 {[%clk 0:01:26]} 20. Nd4 {[%clk 0:00:30]}  Qa4 {[%clk 0:01:24]} 21. Nd6 {[%clk 0:00:26]}  Rb8 {[%clk 0:00:52]} 22. Qh3 {[%clk 0:00:16]}  Nc6 {[%clk 0:00:42]} 23. Nxe6 {[%clk 0:00:15]}  fxe6 {[%clk 0:00:42]} 24. Qxe6+ {[%clk 0:00:16]}  Kh8 {[%clk 0:00:42]} 25. Nf7+ {[%clk 0:00:13]}  Rxf7 {[%clk 0:00:42]} 26. Qxf7 {[%clk 0:00:14]}  Bxc5 {[%clk 0:00:30]} 27. Rd7 {[%clk 0:00:13]}  Bf8 {[%clk 0:00:30]} 28. Rc7 {[%clk 0:00:11]}  Nxe5 {[%clk 0:00:26]} 29. Qe6 {[%clk 0:00:10]}  Ng6 {[%clk 0:00:20]} 30. Rxc4 {[%clk 0:00:10]}  Qxa3 {[%clk 0:00:19]} 31. Rc8 {[%clk 0:00:10]}  Rxc8 {[%clk 0:00:18]} 32. Qxc8 {[%clk 0:00:11]}  a5 {[%clk 0:00:18]} 33. Qa8 {[%clk 0:00:11]}  a4 {[%clk 0:00:18]} 34. g3 {[%clk 0:00:12]}  Qa2 {[%clk 0:00:18]} 35. h4 {[%clk 0:00:12]}  h5 {[%clk 0:00:16]} 36. Qa5 {[%clk 0:00:10]}  Kg8 {[%clk 0:00:10]} 37. Qxh5 {[%clk 0:00:09]}  Qe6 {[%clk 0:00:08]} 38. Qd1 {[%clk 0:00:06]}  a3 {[%clk 0:00:07]} 39. Re1 {[%clk 0:00:06]}  Qf7 {[%clk 0:00:05]} 40. Re2 {[%clk 0:00:07]}  Bc5 {[%clk 0:00:01]} 41. Qc2 {[%clk 0:00:06]} 1-0


[Site "https://www.chess.com"]

[Event "Titled Tuesday Blitz December 06 Early 2022"]
[White "Tsyhanchuk, Stanislav"]
[Black "Mazurkiewicz, Michal"]
[WhiteFideId "13505130"]
[BlackFideId "1124943"]
[WhiteElo "2173"]
[BlackElo "2081"]
[Result "0-1"]
[Round "10"]
[TimeControl "180+1"]
[Date "2022.12.07"]
[WhiteClock "0:00:05"]
[BlackClock "0:00:42"]

1. e4 {[%clk 0:02:59]}  d6 {[%clk 0:02:52]} 2. d4 {[%clk 0:02:59]}  Nf6 {[%clk 0:02:52]} 3. Nc3 {[%clk 0:02:59]}  c6 {[%clk 0:02:53]} 4. Nge2 {[%clk 0:02:57]}  e5 {[%clk 0:02:53]} 5. g3 {[%clk 0:02:57]}  Be7 {[%clk 0:02:52]} 6. Bg2 {[%clk 0:02:57]}  O-O {[%clk 0:02:53]} 7. O-O {[%clk 0:02:57]}  b5 {[%clk 0:02:54]} 8. a3 {[%clk 0:02:56]}  a6 {[%clk 0:02:54]} 9. h3 {[%clk 0:02:55]}  Nbd7 {[%clk 0:02:54]} 10. Be3 {[%clk 0:02:54]}  Bb7 {[%clk 0:02:54]} 11. f4 {[%clk 0:02:54]}  Re8 {[%clk 0:02:49]} 12. g4 {[%clk 0:02:45]}  Bf8 {[%clk 0:02:44]} 13. dxe5 {[%clk 0:02:44]}  dxe5 {[%clk 0:02:43]} 14. f5 {[%clk 0:02:40]}  Bc5 {[%clk 0:02:42]} 15. Bxc5 {[%clk 0:02:40]}  Nxc5 {[%clk 0:02:43]} 16. Qe1 {[%clk 0:02:38]}  a5 {[%clk 0:02:38]} 17. b4 {[%clk 0:02:36]}  axb4 {[%clk 0:02:38]} 18. axb4 {[%clk 0:02:36]}  Rxa1 {[%clk 0:02:38]} 19. Qxa1 {[%clk 0:02:33]}  Na6 {[%clk 0:02:38]} 20. Qb1 {[%clk 0:02:10]}  Qd6 {[%clk 0:02:35]} 21. Na2 {[%clk 0:02:08]}  Qd2 {[%clk 0:02:31]} 22. Kf2 {[%clk 0:01:47]}  c5 {[%clk 0:02:23]} 23. Qc1 {[%clk 0:01:42]}  Nxe4+ {[%clk 0:02:12]} 24. Bxe4 {[%clk 0:01:40]}  Qxc1 {[%clk 0:02:10]} 25. Rxc1 {[%clk 0:01:22]}  Bxe4 {[%clk 0:02:10]} 26. c4 {[%clk 0:00:56]}  bxc4 {[%clk 0:02:06]} 27. b5 {[%clk 0:00:56]}  Nb8 {[%clk 0:01:45]} 28. Nac3 {[%clk 0:00:50]}  Bd3 {[%clk 0:01:44]} 29. Ra1 {[%clk 0:00:43]}  Nd7 {[%clk 0:01:42]} 30. Ra7 {[%clk 0:00:40]}  Nf6 {[%clk 0:01:41]} 31. b6 {[%clk 0:00:33]}  Rb8 {[%clk 0:01:41]} 32. b7 {[%clk 0:00:23]}  Nd7 {[%clk 0:01:35]} 33. Nd5 {[%clk 0:00:16]}  Be4 {[%clk 0:01:26]} 34. Nec3 {[%clk 0:00:11]}  Bxd5 {[%clk 0:01:25]} 35. Nxd5 {[%clk 0:00:11]}  Kf8 {[%clk 0:01:22]} 36. Nc7 {[%clk 0:00:10]}  c3 {[%clk 0:01:05]} 37. Ke2 {[%clk 0:00:10]}  Nb6 {[%clk 0:01:05]} 38. Na6 {[%clk 0:00:08]}  Rd8 {[%clk 0:01:05]} 39. Ra8 {[%clk 0:00:08]}  Nxa8 {[%clk 0:00:59]} 40. b8=Q {[%clk 0:00:08]}  Rxb8 {[%clk 0:00:59]} 41. Nxb8 {[%clk 0:00:09]}  Ke7 {[%clk 0:00:57]} 42. Kd3 {[%clk 0:00:08]}  Kf6 {[%clk 0:00:57]} 43. Nd7+ {[%clk 0:00:06]}  Kg5 {[%clk 0:00:58]} 44. Nxe5 {[%clk 0:00:07]}  f6 {[%clk 0:00:58]} 45. Nf3+ {[%clk 0:00:03]}  Kf4 {[%clk 0:00:58]} 46. Ng1 {[%clk 0:00:04]}  Nc7 {[%clk 0:00:57]} 47. Kxc3 {[%clk 0:00:04]}  Kg3 {[%clk 0:00:52]} 48. Kc4 {[%clk 0:00:04]}  Kg2 {[%clk 0:00:52]} 49. Ne2 {[%clk 0:00:02]}  Kxh3 {[%clk 0:00:53]} 50. Kxc5 {[%clk 0:00:02]}  Kxg4 {[%clk 0:00:53]} 51. Kd6 {[%clk 0:00:03]}  Nb5+ {[%clk 0:00:52]} 52. Kc5 {[%clk 0:00:03]}  Na3 {[%clk 0:00:49]} 53. Kb4 {[%clk 0:00:02]}  Nc2+ {[%clk 0:00:49]} 54. Kc3 {[%clk 0:00:02]}  Ne3 {[%clk 0:00:50]} 55. Kd3 {[%clk 0:00:03]}  Nxf5 {[%clk 0:00:50]} 56. Kd2 {[%clk 0:00:03]}  Kf3 {[%clk 0:00:49]} 57. Ke1 {[%clk 0:00:03]}  g5 {[%clk 0:00:47]} 58. Ng1+ {[%clk 0:00:02]}  Kg2 {[%clk 0:00:47]} 59. Ne2 {[%clk 0:00:03]}  h5 {[%clk 0:00:47]} 60. Nc1 {[%clk 0:00:03]}  h4 {[%clk 0:00:47]} 61. Nd3 {[%clk 0:00:04]}  h3 {[%clk 0:00:47]} 62. Nf2 {[%clk 0:00:05]}  h2 {[%clk 0:00:47]} 63. Ke2 {[%clk 0:00:06]}  g4 {[%clk 0:00:47]} 64. Nh1 {[%clk 0:00:02]}  Kxh1 {[%clk 0:00:44]} 65. Kf1 {[%clk 0:00:03]}  g3 {[%clk 0:00:44]} 66. Ke2 {[%clk 0:00:04]}  g2 {[%clk 0:00:45]} 67. Kf3 {[%clk 0:00:05]}  g1=Q {[%clk 0:00:45]} 68. Kf4 {[%clk 0:00:05]}  Qg5+ {[%clk 0:00:44]} 69. Ke4 {[%clk 0:00:04]}  Nd6+ {[%clk 0:00:44]} 70. Kf3 {[%clk 0:00:05]}  Qf5+ {[%clk 0:00:42]} 71. Kg3 {[%clk 0:00:05]}  Ne4+ {[%clk 0:00:42]} 72. Kh4 {[%clk 0:00:05]}  Qg5+ {[%clk 0:00:42]} 73. Kh3 {[%clk 0:00:05]}  Qh5# {[%clk 0:00:42]} 0-1


[Site "https://www.chess.com"]

[Event "Titled Tuesday Blitz December 06 Early 2022"]
[White "Valle Maytin, Luis Enrique"]
[Black "Kim, Sergey"]
[WhiteFideId "3503666"]
[BlackFideId "13700570"]
[WhiteElo "2225"]
[BlackElo "2607"]
[Result "0-1"]
[Round "10"]
[TimeControl "180+1"]
[Date "2022.12.07"]
[WhiteClock "0:00:04"]
[BlackClock "0:00:14"]

1. e4 {[%clk 0:02:58]}  e5 {[%clk 0:03:00]} 2. Nf3 {[%clk 0:02:58]}  Nc6 {[%clk 0:03:00]} 3. Bb5 {[%clk 0:02:58]}  a6 {[%clk 0:03:00]} 4. Ba4 {[%clk 0:02:59]}  Nf6 {[%clk 0:03:00]} 5. O-O {[%clk 0:02:59]}  b5 {[%clk 0:03:00]} 6. Bb3 {[%clk 0:02:58]}  Bc5 {[%clk 0:03:01]} 7. c3 {[%clk 0:02:52]}  d6 {[%clk 0:03:01]} 8. h3 {[%clk 0:02:47]}  h6 {[%clk 0:03:00]} 9. Re1 {[%clk 0:02:47]}  O-O {[%clk 0:03:00]} 10. d4 {[%clk 0:02:42]}  Bb6 {[%clk 0:02:59]} 11. Be3 {[%clk 0:02:42]}  Re8 {[%clk 0:03:00]} 12. Nbd2 {[%clk 0:02:40]}  exd4 {[%clk 0:02:57]} 13. cxd4 {[%clk 0:02:38]}  Bb7 {[%clk 0:02:57]} 14. Bc2 {[%clk 0:02:36]}  Nb4 {[%clk 0:02:55]} 15. Bb1 {[%clk 0:02:35]}  Nxe4 {[%clk 0:02:55]} 16. Nxe4 {[%clk 0:02:26]}  Bxe4 {[%clk 0:02:54]} 17. a3 {[%clk 0:02:26]}  Nd5 {[%clk 0:02:52]} 18. Bg5 {[%clk 0:01:59]}  hxg5 {[%clk 0:02:51]} 19. Bxe4 {[%clk 0:01:59]}  c6 {[%clk 0:02:45]} 20. Qc1 {[%clk 0:01:59]}  Rc8 {[%clk 0:02:35]} 21. Nxg5 {[%clk 0:01:40]}  Bxd4 {[%clk 0:02:28]} 22. Qd2 {[%clk 0:01:23]}  Bf6 {[%clk 0:02:11]} 23. Nf3 {[%clk 0:01:19]}  Ne7 {[%clk 0:01:57]} 24. Rad1 {[%clk 0:01:12]}  d5 {[%clk 0:01:57]} 25. Bb1 {[%clk 0:01:12]}  Qd6 {[%clk 0:01:49]} 26. Ng5 {[%clk 0:01:08]}  Bxg5 {[%clk 0:01:42]} 27. Qxg5 {[%clk 0:01:07]}  Ng6 {[%clk 0:01:39]} 28. Bf5 {[%clk 0:00:59]}  Rcd8 {[%clk 0:01:37]} 29. g3 {[%clk 0:00:50]}  c5 {[%clk 0:01:26]} 30. Kg2 {[%clk 0:00:49]}  d4 {[%clk 0:01:24]} 31. h4 {[%clk 0:00:46]}  c4 {[%clk 0:01:08]} 32. h5 {[%clk 0:00:40]}  Nf8 {[%clk 0:01:07]} 33. Be4 {[%clk 0:00:21]}  d3 {[%clk 0:01:02]} 34. Qf5 {[%clk 0:00:20]}  Re5 {[%clk 0:00:52]} 35. Qf4 {[%clk 0:00:19]}  Rde8 {[%clk 0:00:42]} 36. f3 {[%clk 0:00:17]}  Qe6 {[%clk 0:00:35]} 37. Rh1 {[%clk 0:00:16]}  f5 {[%clk 0:00:33]} 38. h6 {[%clk 0:00:15]}  g6 {[%clk 0:00:30]} 39. h7+ {[%clk 0:00:14]}  Kh8 {[%clk 0:00:27]} 40. Qh6 {[%clk 0:00:08]}  fxe4 {[%clk 0:00:23]} 41. f4 {[%clk 0:00:08]}  Rf5 {[%clk 0:00:21]} 42. g4 {[%clk 0:00:06]}  Rf7 {[%clk 0:00:20]} 43. Kg3 {[%clk 0:00:05]}  e3 {[%clk 0:00:20]} 44. Qg5 {[%clk 0:00:04]}  e2 {[%clk 0:00:17]} 45. f5 {[%clk 0:00:03]}  Qe3+ {[%clk 0:00:14]} 46. Qxe3 {[%clk 0:00:02]}  Rxe3+ {[%clk 0:00:14]} 47. Kf2 {[%clk 0:00:03]}  exd1=Q {[%clk 0:00:14]} 48. Re1 {[%clk 0:00:04]} 0-1


[Site "https://www.chess.com"]

[Event "Titled Tuesday Blitz December 06 Early 2022"]
[White "Vidit, Santosh Gujrathi"]
[Black "Aravindh, Chithambaram VR."]
[WhiteFideId "5029465"]
[BlackFideId "5072786"]
[WhiteElo "2669"]
[BlackElo "2586"]
[Result "1-0"]
[Round "10"]
[TimeControl "180+1"]
[Date "2022.12.06"]
[WhiteClock "0:00:13"]
[BlackClock "0:00:02"]

1. e4 {[%clk 0:03:00]}  e5 {[%clk 0:02:58]} 2. Nf3 {[%clk 0:03:00]}  Nc6 {[%clk 0:02:57]} 3. Bb5 {[%clk 0:03:00]}  a6 {[%clk 0:02:56]} 4. Ba4 {[%clk 0:03:01]}  Nf6 {[%clk 0:02:57]} 5. O-O {[%clk 0:03:01]}  Nxe4 {[%clk 0:02:51]} 6. Re1 {[%clk 0:02:53]}  Nc5 {[%clk 0:02:50]} 7. Bxc6 {[%clk 0:02:42]}  dxc6 {[%clk 0:02:50]} 8. Nxe5 {[%clk 0:02:42]}  Be6 {[%clk 0:02:17]} 9. Qh5 {[%clk 0:02:09]}  Be7 {[%clk 0:02:10]} 10. b3 {[%clk 0:01:56]}  O-O {[%clk 0:02:02]} 11. Ba3 {[%clk 0:01:51]}  Qd4 {[%clk 0:01:16]} 12. Nf3 {[%clk 0:01:36]}  Qxa1 {[%clk 0:00:36]} 13. Nc3 {[%clk 0:01:36]}  Qxe1+ {[%clk 0:00:34]} 14. Nxe1 {[%clk 0:01:37]}  g6 {[%clk 0:00:34]} 15. Qh6 {[%clk 0:01:30]}  Rfe8 {[%clk 0:00:33]} 16. Nf3 {[%clk 0:01:26]}  Bf8 {[%clk 0:00:29]} 17. Qh4 {[%clk 0:01:26]}  Rad8 {[%clk 0:00:18]} 18. d4 {[%clk 0:01:13]}  Be7 {[%clk 0:00:14]} 19. Ng5 {[%clk 0:01:03]}  Bxg5 {[%clk 0:00:07]} 20. Qxg5 {[%clk 0:01:04]}  Bf5 {[%clk 0:00:04]} 21. g4 {[%clk 0:00:35]}  Ne4 {[%clk 0:00:03]} 22. Nxe4 {[%clk 0:00:33]}  Bxe4 {[%clk 0:00:04]} 23. c4 {[%clk 0:00:15]}  Rxd4 {[%clk 0:00:03]} 24. h3 {[%clk 0:00:13]}  Rd1+ {[%clk 0:00:02]} 25. Kh2 {[%clk 0:00:14]}  Rh1+ {[%clk 0:00:01]} 26. Kg3 {[%clk 0:00:14]}  Rg1+ {[%clk 0:00:02]} 27. Kh4 {[%clk 0:00:14]}  h5 {[%clk 0:00:02]} 28. Bb2 {[%clk 0:00:13]} 1-0


[Site "https://www.chess.com"]

[Event "Titled Tuesday Blitz December 06 Early 2022"]
[White "Zaragatski, Ilja"]
[Black "Bon, Michael"]
[WhiteFideId "4655192"]
[BlackFideId "620696"]
[WhiteElo "2460"]
[BlackElo "2389"]
[Result "1-0"]
[Round "10"]
[TimeControl "180+1"]
[Date "2022.12.07"]
[WhiteClock "0:00:14"]
[BlackClock "0:00:17"]

1. e4 {[%clk 0:03:00]}  c5 {[%clk 0:02:59]} 2. Nf3 {[%clk 0:03:00]}  d6 {[%clk 0:03:00]} 3. d4 {[%clk 0:03:00]}  cxd4 {[%clk 0:03:01]} 4. Nxd4 {[%clk 0:03:00]}  Nf6 {[%clk 0:03:01]} 5. Nc3 {[%clk 0:03:00]}  Nc6 {[%clk 0:03:02]} 6. f3 {[%clk 0:02:59]}  e5 {[%clk 0:02:58]} 7. Nb3 {[%clk 0:02:59]}  Be7 {[%clk 0:02:58]} 8. Be3 {[%clk 0:02:58]}  O-O {[%clk 0:02:56]} 9. Qd2 {[%clk 0:02:56]}  Be6 {[%clk 0:02:46]} 10. O-O-O {[%clk 0:02:55]}  a5 {[%clk 0:02:32]} 11. Bb5 {[%clk 0:02:54]}  Nb4 {[%clk 0:02:31]} 12. a3 {[%clk 0:02:32]}  d5 {[%clk 0:02:30]} 13. axb4 {[%clk 0:02:06]}  d4 {[%clk 0:02:25]} 14. Nxd4 {[%clk 0:01:57]}  axb4 {[%clk 0:01:57]} 15. Nb1 {[%clk 0:01:17]}  exd4 {[%clk 0:01:55]} 16. Qxd4 {[%clk 0:01:15]}  Qc7 {[%clk 0:01:45]} 17. Qb6 {[%clk 0:01:14]}  Rfc8 {[%clk 0:01:12]} 18. Qxc7 {[%clk 0:01:13]}  Rxc7 {[%clk 0:01:13]} 19. Bb6 {[%clk 0:01:06]}  Rcc8 {[%clk 0:01:11]} 20. Rd3 {[%clk 0:00:55]}  Ra1 {[%clk 0:01:08]} 21. c4 {[%clk 0:00:23]}  Bxc4 {[%clk 0:00:40]} 22. Bxc4 {[%clk 0:00:22]}  Rxc4+ {[%clk 0:00:41]} 23. Kd2 {[%clk 0:00:23]}  h5 {[%clk 0:00:37]} 24. Rc1 {[%clk 0:00:17]}  Rc6 {[%clk 0:00:32]} 25. Rxc6 {[%clk 0:00:16]}  bxc6 {[%clk 0:00:33]} 26. Kc2 {[%clk 0:00:16]}  c5 {[%clk 0:00:26]} 27. Nd2 {[%clk 0:00:16]}  Rg1 {[%clk 0:00:21]} 28. e5 {[%clk 0:00:16]}  Ne8 {[%clk 0:00:19]} 29. Rd7 {[%clk 0:00:16]}  Kf8 {[%clk 0:00:17]} 30. Rxe7 {[%clk 0:00:16]}  Kxe7 {[%clk 0:00:16]} 31. Bxc5+ {[%clk 0:00:16]}  Ke6 {[%clk 0:00:17]} 32. Bxg1 {[%clk 0:00:17]}  Kxe5 {[%clk 0:00:17]} 33. Nc4+ {[%clk 0:00:17]}  Kf4 {[%clk 0:00:17]} 34. Be3+ {[%clk 0:00:14]} 1-0


[Site "https://www.chess.com"]

[Event "Titled Tuesday Blitz December 06 Early 2022"]
[White "monkins"]
[Black "Osmonbekov, Talaibek"]
[BlackFideId "2017253"]
[WhiteElo "2245"]
[BlackElo "2135"]
[Result "0-1"]
[Round "10"]
[TimeControl "180+1"]
[Date "2022.12.07"]
[WhiteClock "0:00:01"]
[BlackClock "0:00:31"]

1. Nf3 {[%clk 0:03:00]}  f5 {[%clk 0:02:57]} 2. c4 {[%clk 0:03:01]}  Nf6 {[%clk 0:02:57]} 3. g3 {[%clk 0:03:00]}  e6 {[%clk 0:02:55]} 4. Bg2 {[%clk 0:03:00]}  Be7 {[%clk 0:02:55]} 5. O-O {[%clk 0:03:00]}  O-O {[%clk 0:02:56]} 6. d3 {[%clk 0:02:58]}  d6 {[%clk 0:02:56]} 7. Nc3 {[%clk 0:02:56]}  e5 {[%clk 0:02:56]} 8. b4 {[%clk 0:02:54]}  Qe8 {[%clk 0:02:56]} 9. Bb2 {[%clk 0:02:40]}  Qh5 {[%clk 0:02:52]} 10. c5 {[%clk 0:02:37]}  f4 {[%clk 0:02:47]} 11. cxd6 {[%clk 0:02:36]}  cxd6 {[%clk 0:02:47]} 12. Qb3+ {[%clk 0:02:28]}  Kh8 {[%clk 0:02:46]} 13. Rfe1 {[%clk 0:02:18]}  Bh3 {[%clk 0:02:34]} 14. Bh1 {[%clk 0:02:17]}  Nc6 {[%clk 0:02:31]} 15. Ne4 {[%clk 0:01:43]}  Nxe4 {[%clk 0:01:58]} 16. dxe4 {[%clk 0:01:44]}  Bd8 {[%clk 0:01:55]} 17. b5 {[%clk 0:01:42]}  Na5 {[%clk 0:01:50]} 18. Qb4 {[%clk 0:01:32]}  Rf6 {[%clk 0:01:44]} 19. Red1 {[%clk 0:01:10]}  Qg6 {[%clk 0:01:34]} 20. Nxe5 {[%clk 0:00:49]}  dxe5 {[%clk 0:01:24]} 21. Rxd8+ {[%clk 0:00:49]}  Rxd8 {[%clk 0:01:19]} 22. Qxa5 {[%clk 0:00:49]}  Rfd6 {[%clk 0:00:54]} 23. Qe1 {[%clk 0:00:43]}  Qg5 {[%clk 0:00:49]} 24. Bg2 {[%clk 0:00:33]}  Bxg2 {[%clk 0:00:45]} 25. Kxg2 {[%clk 0:00:34]}  h5 {[%clk 0:00:46]} 26. Qc3 {[%clk 0:00:19]}  Rd4 {[%clk 0:00:40]} 27. h4 {[%clk 0:00:15]}  Qg6 {[%clk 0:00:36]} 28. Qc7 {[%clk 0:00:10]}  Qxe4+ {[%clk 0:00:34]} 29. Kh2 {[%clk 0:00:09]}  fxg3+ {[%clk 0:00:34]} 30. fxg3 {[%clk 0:00:07]}  Qxe2+ {[%clk 0:00:34]} 31. Kh3 {[%clk 0:00:05]}  Qg4+ {[%clk 0:00:31]} 32. Kg2 {[%clk 0:00:01]}  Rd2+ {[%clk 0:00:30]} 33. Kh1 {[%clk 0:00:01]}  Qf3+ {[%clk 0:00:31]} 0-1


[Site "https://www.chess.com"]